[Event "Italian-ch Semifinal 2022"]
[Site "Acqui Terme"]
[Date "2022.06.15"]
[Round "5.1"]
[White "Barp, Alberto"]
[Black "Lettieri, Giuseppe"]
[Result "1-0"]
[ECO "E11"]
[WhiteElo "2384"]
[BlackElo "2445"]
[Annotator "TA"]
[PlyCount "147"]
[EventDate "2022.06.15"]
[EventType "swiss"]
[EventCountry "ITA"]
[SourceTitle "playchess.com"]
[Source "ChessBase"]
[SourceQuality "1"]
[TimeControl "40/5400+30:1800+30"]

{[%evp 16,146,0,10,16,0,0,0,5,8,0,0,0,0,6,15,6,0,7,3,14,9,9,0,0,-10,0,-8,-10,-9,0,-27,-25,-30,10,0,0,0,139,104,120,73,130,122,110,106,103,77,83,0,0,0,5617,697,2597,663,6203,6206,6206,1962,29956,665,665,665,665,665,665,658,650,650,636,621,621,621,615,607,599,0,0,0,592,577,577,577,544,530,508,368,528,522,1266,679,626,598,571,559,463,245,226,8,8,8,8,8,8,10,27,8,8,8,27,27,122,114,122,86,1268,10,29978,29979,29980,29981,29981,29982,29982,29983,29983,29984,29984,29985,29994,29990,29999]} 1. d4 {[%emt 0:01:44]} Nf6 {[%emt 0:00:03]} 2. c4 {[%emt 0:00:10]} e6 {[%emt 0:00:05]} 3. Nf3 {[%emt 0:00:50]} d5 {[%emt 0:00:06]} 4. g3 {[%emt 0:00:09]} Bb4+ {[%emt 0:00:24]} 5. Bd2 {[%emt 0:00:27]} Be7 {[%emt 0:00:10]} 6. Bg2 {[%emt 0:00:05]} O-O {[%emt 0:00:11]} 7. O-O {[%emt 0:00:05]} c6 {[%emt 0:00:11]} 8. Qc2 {[%emt 0:00:56]} Nbd7 {[%emt 0:00:42]} 9. Bf4 {[%emt 0:01:47]} b6 {[%emt 0:01:29] E11: Bogo-Indian.} 10. Nbd2 {[%emt 0:01:59]} Nh5 {[%emt 0:10:50]} 11. e3 $1 {[%emt 0:04:34][%mdl 4] outshines the older 11.Be3.} Nxf4 {[%emt 0:00:32] The position is equal.} 12. exf4 {[%emt 0:00:10]} Bb7 {[%emt 0:02:27]} 13. cxd5 {[%emt 0:01:05]} cxd5 {[%emt 0:01:55]} 14. Rfc1 {[%emt 0:00:07]} Rc8 {[%emt 0:05:53]} 15. Qa4 {[%emt 0:02:19]} a6 {[%emt 0:02:34]} 16. Bf1 {[%emt 0:04:23]} b5 {[%emt 0:02:23]} 17. Qd1 {[%emt 0:00:27] [#]} Nb6 $146 {[%emt 0:01:32]} ({Predecessor:} 17... Rxc1 18. Rxc1 Qb8 19. Bd3 Rc8 20. Rb1 Qd6 21. Qe2 Bf6 22. h4 g6 23. h5 Bg7 24. hxg6 hxg6 {½-½ (98) Matlakov,M (2671)-Niemann,H (2678) Chess.com INT 2022}) 18. Bd3 {[%emt 0:05:20]} Nc4 {[%emt 0:05:51]} 19. Rc2 {[%emt 0:04:37]} Qb6 {[%emt 0:04:53]} 20. Qe2 {[%emt 0:06:41]} Rc7 {[%emt 0:05:48]} 21. Rd1 {[%emt 0:06:44]} Rfc8 {[%emt 0:13:03]} 22. h4 {[%emt 0:02:22]} a5 {[%emt 0:06:16]} 23. h5 {[%emt 0:16:39]} a4 {[%emt 0:05:38]} 24. b3 {[%emt 0:18:28]} Na3 {[%emt 0:01:26]} 25. Rxc7 {[%emt 0:00:07]} Rxc7 {[%emt 0:00:08]} ({But not} 25... Qxc7 26. Ng5 $16) 26. Nb1 {[%emt 0:06:22]} Qd6 {[%emt 0:11:13]} (26... Nxb1 $11 {remains equal.} 27. Rxb1 axb3) 27. Nxa3 {[%emt 0:03:33]} Qxa3 {[%emt 0:00:02]} 28. h6 {[%emt 0:00:50]} (28. Ng5 $142) 28... Bf6 {[%emt 0:04:29]} (28... gxh6 $142 29. Ne5 Bf6) 29. hxg7 $1 $16 {[%emt 0:04:00]} axb3 {[%emt 0:08:57]} 30. axb3 {[%emt 0:00:08]} Qxb3 {[%emt 0:00:18]} 31. Ne5 {[%emt 0:00:58]} Bxg7 {[%emt 0:02:28]} 32. Bxb5 {[%emt 0:02:28] White is more active.} (32. f5 $16) 32... Rc2 $11 {[%emt 0:00:53]} 33. Qh5 {[%emt 0:02:05]} Qxb5 $4 {[%emt 0:02:31][%mdl 8192]} (33... Bxe5 $11 34. Qg5+ (34. Bd3 Bxd4 35. Qg5+ Kf8 $11) 34... Kf8 35. Qd8+ Kg7 36. Qg5+ Kf8 37. Qd8+ Kg7 38. Qg5+ Kf8) 34. Qxf7+ $18 {[%emt 0:00:12]} Kh8 {[%emt 0:00:01]} 35. Qxe6 {[%emt 0:00:19]} (35. Kg2 $142 Rxf2+ 36. Kxf2 Qb2+ 37. Kg1) 35... Bxe5 {[%emt 0:01:52]} 36. Qxe5+ {[%emt 0:00:01]} Kg8 {[%emt 0:00:01]} 37. Qg5+ {[%emt 0:00:20]} (37. Qe6+ $142 Kh8 38. Qf6+ Kg8 39. Qg5+ Kf7 40. Qf5+ Kg8 41. Qxc2) 37... Kh8 {[%emt 0:00:08]} 38. Qf6+ {[%emt 0:03:18]} (38. Qd8+ $142 Kg7 39. Qe7+ Kg8 40. Re1 Rc8 41. Qg5+ Kh8 42. Qf6+ (42. Re7 Rc1+ 43. Kh2 Rh1+ 44. Kxh1 Qf1+ 45. Kh2 Qxf2+ 46. Kh1 Qf1+ 47. Kh2 Qf2+ 48. Kh3 Bc8+ 49. f5 Bxf5+ 50. g4 Qf3+ 51. Kh4 Qf2+ 52. Kh3 Qf3+ 53. Kh4 Qf2+ 54. Kh3 $11) 42... Kg8 43. Re5 Qb1+ 44. Kg2) 38... Kg8 {[%emt 0:00:01]} 39. Qd8+ {[%emt 0:00:15]} Kf7 {[%emt 0:00:57]} 40. Re1 {[%emt 0:00:00] Against Qe8. White wants to mate with Re7+.} Re2 {[%emt 0:00:00] Against Re7+} 41. Qc7+ {[%emt 0:04:15][%mdl 64] Skewer} Kf6 {[%emt 0:14:46]} 42. Rxe2 {[%emt 0:01:39]} Qxe2 {[%emt 0:01:05]} 43. Qb6+ {[%emt 0:04:26]} Qe6 {[%emt 0:00:21]} 44. Qxb7 {[%emt 0:00:18][%mdl 4096] Endgame KQ-KQ} Qe1+ {[%emt 0:00:02]} 45. Kg2 {[%emt 0:00:38]} Qe4+ {[%emt 0:00:04]} 46. Kg1 {[%emt 0:01:40]} Qe1+ {[%emt 0:00:05]} 47. Kg2 {[%emt 0:00:03]} Qe4+ {[%emt 0:00:02]} 48. Kh2 $1 {[%emt 0:02:46]} Qxd4 {[%emt 0:00:20]} 49. Qc6+ {[%emt 0:00:29]} Ke7 {[%emt 0:12:25]} 50. Qc2 {[%emt 0:01:56]} Kd6 {[%emt 0:01:05]} 51. Kg1 {[%emt 0:01:36]} Qa7 {[%emt 0:02:23]} (51... Qa1+ {was necessary.} 52. Kg2 Qa8) 52. Qe2 {[%emt 0:02:25] Strongly threatening Qe5+.} Kc5 {[%emt 0:02:05]} 53. f5 {[%emt 0:03:30]} Qa1+ {[%emt 0:00:13]} 54. Kg2 {[%emt 0:01:10]} Qf6 {[%emt 0:00:02] Against Qe7+} 55. Qc2+ {[%emt 0:00:46]} Kd6 {[%emt 0:00:13]} 56. Kf3 {[%emt 0:00:44]} (56. Qc8 $142 {Black must now prevent Qa6+.} Qf7 57. Qb8+ Kc6 58. Qe5) 56... h5 {[%emt 0:01:12]} 57. Qc8 $2 {[%emt 0:06:57]} (57. Kg2 $1 $18) 57... Ke5 $11 {[%emt 0:01:26]} 58. Qe8+ {[%emt 0:02:51]} Kxf5 {[%emt 0:00:14]} 59. Qxh5+ {[%emt 0:00:06]} Ke6+ {[%emt 0:00:03]} 60. Kg2 {[%emt 0:00:37] And now Qe2+ would win.} Qc3 $1 {[%emt 0:02:07]} 61. g4 {[%emt 0:01:23]} d4 $1 {[%emt 0:00:22]} 62. Qf5+ {[%emt 0:00:05]} Kd6 {[%emt 0:00:30]} 63. Qf6+ {[%emt 0:00:10]} Kd5 {[%emt 0:00:20]} (63... Kd7 $1 $11 {keeps the balance.}) 64. g5 $16 {[%emt 0:00:07] Threatening mate with g6.} Qc8 {[%emt 0:00:21]} 65. Qf3+ {[%emt 0:04:38]} Ke5 $2 {[%emt 0:00:37][%mdl 8192] [#]} (65... Kc4 $16) 66. g6 $2 {[%emt 0:00:15]} (66. Qg3+ $1 $18 Ke4 67. g6) 66... Qg8 $2 {[%emt 0:01:37][%mdl 8192] [#]} (66... d3 $11) 67. Qf7 $1 {[%emt 0:00:16] White mates.} Qa8+ {[%emt 0:00:03]} 68. Kg3 {[%emt 0:00:21]} d3 {[%emt 0:00:18]} 69. f4+ {[%emt 0:01:03]} Ke4 {[%emt 0:01:45]} 70. g7 {[%emt 0:00:16]} d2 {[%emt 0:00:23]} 71. Qe6+ {[%emt 0:00:46]} Kd4 {[%emt 0:00:37]} 72. g8=Q {[%emt 0:00:05]} Qa3+ {[%emt 0:00:05]} 73. Qb3 {[%emt 0:00:09][%csl Gb3][%cal Rg8c4]} d1=Q {[%emt 0:00:16]} 74. Qgd5# {[%emt 0:00:13] Weighted Error Value: White=0.60/Black=0.24 (precise)} 1-0

[Event "Italian-ch Semifinal 2022"]
[Site "Acqui Terme"]
[Date "2022.06.15"]
[Round "5.2"]
[White "Boraso, Alessio"]
[Black "Genocchio, Daniele"]
[Result "1/2-1/2"]
[ECO "B11"]
[WhiteElo "2287"]
[BlackElo "2365"]
[Annotator "TA"]
[PlyCount "208"]
[EventDate "2022.06.15"]
[EventType "swiss"]
[EventCountry "ITA"]
[SourceTitle "playchess.com"]
[Source "ChessBase"]
[SourceQuality "1"]
[TimeControl "40/5400+30:1800+30"]

{[%evp 12,208,43,43,47,23,28,20,47,12,18,-11,-8,-7,0,0,0,-30,-26,-20,-25,-26,-18,-15,0,0,0,0,0,-33,-36,-46,41,68,126,115,101,124,96,108,102,124,110,110,283,68,68,76,75,6,9,20,6,7,11,0,0,0,0,0,0,0,0,0,0,0,0,0,0,0,0,0,0,0,0,0,0,0,0,0,0,0,0,0,0,0,0,0,0,0,0,0,0,0,0,0,0,0,0,0,0,0,0,0,0,0,0,0,0,0,0,0,0,0,0,0,0,0,0,0,0,0,0,-4,0,0,0,0,0,0,0,0,0,0,0,0,0,0,0,-11,0,-141,0,0,0,0,0,0,0,0,0,0,0,0,0,0,0,0,0,0,0,-31,0,-4,0,-31,0,-11,0,-31,0,0,0,0,0,-31,0,-11,0,0,0,0,0,-141,-141,-141,-141,-141,-116,-141,-141,-141,-141,-141,-141,-141,-141,-141,-141]} 1. e4 {[%emt 0:00:04]} c6 {[%emt 0:05:28]} 2. Nc3 {[%emt 0:01:33]} d5 {[%emt 0:00:20]} 3. Nf3 {[%emt 0:00:46]} dxe4 {[%emt 0:01:54]} 4. Nxe4 {[%emt 0:00:47]} Bf5 {[%emt 0:00:57]} 5. Ng3 {[%emt 0:04:02]} Bg4 {[%emt 0:00:08]} 6. h3 {[%emt 0:07:37]} Bxf3 {[%emt 0:00:07]} 7. Qxf3 {[%emt 0:00:06]} Nf6 {[%emt 0:02:17] B11: Caro-Kann: Two Knights Variation.} 8. b3 {[%emt 0:02:16]} e6 {[%emt 0:10:25]} 9. Bb2 {[%emt 0:00:29]} Be7 {[%emt 0:05:20] The position is equal.} 10. Bd3 {[%emt 0:17:52]} Nbd7 {[%emt 0:00:50] [#]} 11. Rd1 $146 {[%emt 0:04:42]} ({Predecessor:} 11. O-O Nc5 12. Ne4 {½-½ (12) Jensen,A (1955)-Spillum,J (1800) Moss 2003}) 11... Qa5 {[%emt 0:05:24]} 12. Bc3 {[%emt 0:03:26] This bishop pair is nice.} Bb4 {[%emt 0:04:23]} 13. Bxb4 {[%emt 0:02:02]} Qxb4 {[%emt 0:00:04]} 14. Ne4 {[%emt 0:07:23]} O-O-O {[%emt 0:11:56]} 15. Nxf6 {[%emt 0:11:57]} gxf6 {[%emt 0:04:21]} 16. Qe3 {[%emt 0:02:24]} Rhg8 {[%emt 0:02:40]} 17. O-O {[%emt 0:01:40]} Qh4 {[%emt 0:09:25]} 18. Kh2 {[%emt 0:03:28]} f5 {[%emt 0:14:11]} 19. g3 {[%emt 0:03:01]} Qf6 {[%emt 0:02:09]} 20. f4 {[%emt 0:05:15]} Nb6 {[%emt 0:05:19]} 21. Be2 {[%emt 0:01:39]} Nd5 {[%emt 0:04:00]} (21... Qb2 $15) 22. Qxa7 $14 {[%emt 0:03:09]} e5 {[%emt 0:00:16]} (22... Qb2 $14) 23. fxe5 $1 $16 {[%emt 0:02:31]} Qxe5 {[%emt 0:00:11]} 24. Qf2 {[%emt 0:00:17]} f4 {[%emt 0:03:12]} 25. gxf4 {[%emt 0:01:15]} Nxf4 {[%emt 0:05:04]} 26. Bg4+ {[%emt 0:04:58]} Ne6+ {[%emt 0:00:47]} 27. Qf4 {[%emt 0:01:13]} Qd5 {[%emt 0:02:19]} (27... Qxf4+ $16 {might work better.} 28. Rxf4 h5) 28. Qxf7 $2 {[%emt 0:01:49]} (28. c4 $1 $18 {[%cal Rc4d5]} Qd6 29. Qxd6 Rxd6 30. Rxf7) 28... Rxg4 $1 $14 {[%emt 0:00:04]} 29. hxg4 {[%emt 0:00:17] Rfe1 is the strong threat. Really sharp!} Qe5+ {[%emt 0:00:01]} 30. Kh1 {[%emt 0:02:05]} (30. Kg2 $1 $16 Rf8 31. Qxe6+ $3 {[%mdl 512]} (31. Qxh7 $2 Nf4+ 32. Kg3 Ng6+ 33. Kg2 Qe2+ 34. Kg3 Qe5+ 35. Kg2 Qe2+ 36. Kg3 Qe5+ $19) 31... Qxe6 32. Rxf8+ Kc7 33. Kg3) 30... Rf8 $1 $11 {[%emt 0:00:01]} 31. Qxf8+ {[%emt 0:03:17]} (31. Qxh7 $2 Rh8 32. Qxh8+ Qxh8+ 33. Kg2 Qh4 $19) 31... Nxf8 {[%emt 0:00:03]} 32. Rxf8+ {[%emt 0:00:03][%mdl 4096] Endgame KQ-KRR} Kc7 {[%emt 0:00:02]} 33. Rf2 {[%emt 0:01:48]} Qe4+ {[%emt 0:00:20]} 34. Rg2 {[%emt 0:00:28] Threatens to win with d3.} Qxc2 {[%emt 0:00:14]} 35. Re1 {[%emt 0:00:29]} Qxa2 {[%emt 0:00:11]} 36. Re3 {[%emt 0:00:53]} Kb6 {[%emt 0:01:49]} 37. Kh2 {[%emt 0:00:14]} Qa3 {[%emt 0:00:34]} 38. Kh3 {[%emt 0:00:14]} Qf8 {[%emt 0:00:51]} 39. Rge2 {[%emt 0:01:03]} Qf6 {[%emt 0:01:19]} 40. Kg3 {[%emt 0:00:00]} Qd6+ {[%emt 0:00:00]} 41. Kf3 {[%emt 0:01:12]} Qd5+ {[%emt 0:01:23]} 42. Kf4 {[%emt 0:00:38]} Qf7+ {[%emt 0:05:42]} 43. Kg3 {[%emt 0:00:24]} Qd5 {[%emt 0:03:56]} 44. Kh4 {[%emt 0:02:57]} h6 {[%emt 0:01:46]} 45. Kg3 {[%emt 0:06:19]} Ka6 {[%emt 0:02:39]} 46. Kf2 {[%emt 0:02:08]} b6 {[%emt 0:02:53]} 47. Kg3 {[%emt 0:04:12]} c5 {[%emt 0:00:15]} 48. Rf2 {[%emt 0:01:55]} Ka5 {[%emt 0:00:48]} 49. Rc3 {[%emt 0:01:39]} Qh1 {[%emt 0:04:23]} 50. Rcf3 {[%emt 0:01:27]} Qe1 {[%emt 0:01:35]} 51. Re3 {[%emt 0:01:14]} Qg1+ {[%emt 0:00:05]} 52. Rg2 {[%emt 0:00:10]} Qd1 {[%emt 0:00:29]} 53. Rh2 {[%emt 0:01:14]} Qg1+ {[%emt 0:00:24]} 54. Rg2 {[%emt 0:00:01]} Qa1 {[%emt 0:00:22]} 55. Rf2 {[%emt 0:01:23]} Qg7 {[%emt 0:02:04]} 56. Rf5 {[%emt 0:00:57]} Qd7 {[%emt 0:00:15]} 57. Rf2 {[%emt 0:00:16]} Qd6+ {[%emt 0:00:01]} 58. Kh3 {[%emt 0:02:17]} Kb4 {[%emt 0:00:29]} 59. Rc3 {[%emt 0:00:54]} Ka3 {[%emt 0:04:13]} 60. Rcf3 {[%emt 0:02:40]} b5 {[%emt 0:02:26]} 61. Rc3 {[%emt 0:00:31]} b4 {[%emt 0:00:49]} 62. Re3 {[%emt 0:01:03]} Qd4 {[%emt 0:02:07]} 63. Kg3 {[%emt 0:00:28]} Qd5 {[%emt 0:00:17]} 64. Kh3 {[%emt 0:01:05]} Qh1+ {[%emt 0:00:10]} 65. Kg3 {[%emt 0:00:06]} Qd5 {[%emt 0:00:09]} 66. Kh3 {[%emt 0:00:06]} Qd4 {[%emt 0:03:21]} 67. Kg3 {[%emt 0:00:37]} Ka2 {[%emt 0:00:13]} 68. Rff3 {[%emt 0:03:38]} Qd6+ {[%emt 0:01:07]} 69. Kg2 {[%emt 0:00:22]} Qg6 {[%emt 0:00:15]} 70. Kh3 {[%emt 0:00:32]} h5 {[%emt 0:00:54]} 71. gxh5 {[%emt 0:00:12]} Qxh5+ {[%emt 0:00:01]} 72. Kg2 {[%emt 0:00:15]} Kb2 {[%emt 0:00:49]} 73. Rf2 {[%emt 0:00:45]} Qg4+ {[%emt 0:00:25]} 74. Kf1 {[%emt 0:00:16]} Qd4 {[%emt 0:00:37]} 75. Rg3 {[%emt 0:03:51]} Kc2 {[%emt 0:00:14][%mdl 1024] Black has compensation.} 76. Re3 {[%emt 0:00:25] [#]} (76. Kg2 $11) 76... Qa1+ {[%emt 0:00:19]} ({Better is} 76... c4 $1 $17 {[%cal Rc4b3]} 77. bxc4 b3 78. d3+ Kc3) 77. Kg2 {[%emt 0:00:20] Intending d4+ and mate.} Qg7+ {[%emt 0:00:02]} 78. Kf1 {[%emt 0:00:26]} Qa1+ {[%emt 0:01:03]} 79. Kg2 {[%emt 0:00:01] White threatens d4+ and mate.} Qa8+ {[%emt 0:00:17]} 80. Kg1 {[%emt 0:00:20] Strongly threatening d4+.} Kd1 {[%emt 0:01:15]} ({Reject} 80... Qa1+ $6 81. Kg2 $15) 81. Rg3 {[%emt 0:01:35]} Qd5 {[%emt 0:00:54]} 82. Rf1+ {[%emt 0:01:26]} Kc2 {[%emt 0:00:27]} 83. Rf2 {[%emt 0:00:11]} Kd1 {[%emt 0:00:11]} 84. Rf1+ {[%emt 0:00:31]} Kc2 {[%emt 0:00:24]} 85. Rf2 {[%emt 0:00:29]} Qd4 {[%emt 0:00:02]} 86. Kf1 {[%emt 0:00:25]} Kd1 {[%emt 0:01:27]} 87. Re3 {[%emt 0:00:25]} Kc2 {[%emt 0:00:27]} 88. Rh3 {[%emt 0:00:50]} Kd1 {[%emt 0:00:32]} (88... c4 $5 {[%cal Rc4b3]} 89. d3+ (89. bxc4 $2 b3 $19) 89... Kxb3 90. dxc4+ Kxc4 $17) 89. Re3 {[%emt 0:00:36]} Kc2 {[%emt 0:00:36]} 90. Rh3 {[%emt 0:00:07]} Qa1+ {[%emt 0:00:15]} (90... c4 $5 {[%cal Rc4b3]} 91. d3+ (91. bxc4 $2 b3 $19) 91... Kxb3 92. dxc4+ Kxc4 $17) 91. Kg2 {[%emt 0:00:11] Threatening mate with d4+.} Qg7+ {[%emt 0:00:24]} 92. Rg3 {[%emt 0:00:16]} Qd4 {[%emt 0:00:21]} 93. Kf1 {[%emt 0:00:30]} Kc1 {[%emt 0:00:25]} 94. Re3 {[%emt 0:00:15]} c4 {[%emt 0:01:03]} 95. bxc4 {[%emt 0:01:10]} Kc2 {[%emt 0:00:02]} 96. c5 {[%emt 0:00:25]} b3 {[%emt 0:00:42] Hoping for ...b2.} 97. d3+ {[%emt 0:00:34]} (97. c6 $11 {remains equal.}) 97... Kc3 $17 {[%emt 0:00:14]} 98. Ree2 {[%emt 0:00:33]} Qxd3 {[%emt 0:00:55] ( -> ...b2)} 99. Kg1 {[%emt 0:00:32]} Qd1+ {[%emt 0:00:31]} 100. Kh2 {[%emt 0:00:10]} Kb4 {[%emt 0:00:05] Black is clearly better.} 101. c6 {[%emt 0:01:07]} Qd6+ {[%emt 0:00:04]} 102. Kh3 {[%emt 0:00:15]} Qxc6 {[%emt 0:00:10]} 103. Kg4 {[%emt 0:00:22]} Qg6+ {[%emt 0:00:18]} 104. Kh4 {[%emt 0:00:30]} Qh6+ {[%emt 0:00:13] What a bad dream for White.  Weighted Error Value: White=0.12 (very precise) /Black=0.11 (very precise)} 1/2-1/2

[Event "Italian-ch Semifinal 2022"]
[Site "Acqui Terme"]
[Date "2022.06.15"]
[Round "5.3"]
[White "Pasini, Nicolo"]
[Black "Carnicelli, Valerio"]
[Result "1/2-1/2"]
[ECO "B48"]
[WhiteElo "2227"]
[BlackElo "2319"]
[Annotator "TA"]
[PlyCount "33"]
[EventDate "2022.06.15"]
[EventType "swiss"]
[EventCountry "ITA"]
[SourceTitle "playchess.com"]
[Source "ChessBase"]
[SourceQuality "1"]
[TimeControl "40/5400+30:1800+30"]

{[%evp 11,33,26,44,0,0,0,0,11,4,-5,7,-7,13,17,7,11,40,27,23,31,31,-25,-19,-13]} 1. e4 {[%emt 1:31:00]} c5 {[%emt 0:01:19]} 2. Nf3 {[%emt 0:00:00]} Nc6 {[%emt 0:00:09]} 3. d4 {[%emt 0:00:00]} cxd4 {[%emt 0:00:04]} 4. Nxd4 {[%emt 0:00:00]} e6 {[%emt 0:00:04]} 5. Nc3 {[%emt 0:00:00]} Qc7 {[%emt 0:00:04]} 6. Be3 {[%emt 0:00:00]} a6 {[%emt 0:00:05]} 7. g4 $1 {[%emt 0:00:00][%mdl 4] now scores much better than the old 7.Qd2. B48: Sicilian: Taimanov: 5 Nc3 Qc7 6 Be3 a6 without Be2.} b5 {[%emt 0:00:04]} 8. Nxc6 {[%emt 0:00:00]} Qxc6 {[%emt 0:00:04]} 9. Qd2 {[%emt 0:00:00]} b4 {[%emt 0:00:03]} 10. Ne2 {[%emt 0:00:00]} Qxe4 {[%emt 0:00:05]} 11. Rg1 {[%emt 0:00:00] [#] Threatens to win with Bg2.} Qc6 {[%emt 0:00:04]} 12. Bg2 {[%emt 0:00:00][%mdl 1024] White has compensation.} d5 {[%emt 0:00:12]} 13. O-O-O {[%emt 0:00:00]} Bb7 {[%emt 0:00:04] [#]} 14. f4 $146 {[%emt 0:00:00]} ({Predecessor:} 14. Nf4 Nf6 15. Bd4 Rc8 16. g5 Ne4 17. Bxe4 dxe4 18. Nh5 Rg8 19. Bf6 Qd5 20. b3 Qxd2+ 21. Rxd2 e3 22. fxe3 Bf3 23. Rgd1 Bxd1 24. Rxd1 Bc5 25. Nxg7+ Kf8 {0-1 (25) Nielsen,V (2323)-Hacker,J (2396) Ballerup 2022}) 14... Nf6 {[%emt 0:00:05]} 15. f5 {[%emt 0:00:00]} exf5 {[%emt 0:00:08]} 16. Nf4 {[%emt 0:00:00]} ({Better is} 16. Nd4 $14 Qa4 17. Nb3) 16... O-O-O $11 {[%emt 0:12:30]} (16... Nxg4 $2 17. Bxd5 Qc7 18. Rge1 $18) 17. gxf5 {[%emt 0:00:00] An even fight not without its subleties.  Weighted Error Value: White=0.12 (very precise) /Black=0.06 (flawless)} 1/2-1/2

[Event "Italian-ch Semifinal 2022"]
[Site "Acqui Terme"]
[Date "2022.06.15"]
[Round "5.4"]
[White "Lumachi, Gabriele"]
[Black "Bettalli, Francesco"]
[Result "1-0"]
[ECO "A01"]
[WhiteElo "2347"]
[BlackElo "2304"]
[Annotator "TA"]
[PlyCount "103"]
[EventDate "2022.06.15"]
[EventType "swiss"]
[EventCountry "ITA"]
[SourceTitle "playchess.com"]
[Source "ChessBase"]
[SourceQuality "1"]
[TimeControl "40/5400+30:1800+30"]

{[%evp 11,103,14,21,19,18,6,63,52,62,57,80,78,112,118,116,117,118,116,107,22,31,0,0,0,0,-115,0,0,0,0,0,0,0,0,78,77,69,66,98,66,60,63,300,37,27,35,86,97,103,94,164,159,150,72,90,76,205,204,198,130,99,108,124,124,121,139,114,7,191,170,243,243,246,223,231,209,294,328,418,442,556,533,635,629,582,587,6222,6191,6175,5781,29984,29985,29988,29989]} 1. b3 {[%emt 0:00:06]} e5 {[%emt 0:00:12]} 2. Bb2 {[%emt 0:00:08]} d6 {[%emt 0:00:17]} 3. e3 {[%emt 0:00:31]} g6 {[%emt 0:00:06]} 4. d4 {[%emt 0:01:04]} Bg7 {[%emt 0:00:06]} 5. dxe5 {[%emt 0:00:39]} Nd7 {[%emt 0:00:23]} 6. Nf3 {[%emt 0:00:48]} Nxe5 {[%emt 0:00:10]} 7. Nxe5 {[%emt 0:00:17] A01: Nimzowitsch-Larsen Opening.} Bxe5 {[%emt 0:00:05]} 8. Nc3 {[%emt 0:00:16]} Ne7 {[%emt 0:05:52]} (8... f5 $11) 9. f4 {[%emt 0:00:58] White is slightly better.} Bg7 {[%emt 0:00:05]} 10. Qf3 {[%emt 0:00:05]} O-O {[%emt 0:23:35]} 11. O-O-O {[%emt 0:00:18] [#]} f5 $146 {[%emt 0:01:02]} ({Predecessor:} 11... a5 12. a4 Bd7 13. e4 Kh8 14. g4 f5 15. gxf5 gxf5 16. Rg1 Ng6 17. e5 Bc6 {1-0 (28) Gabuzyan,H (2557)-Ohanyan,E (2345) Yerevan 2021}) 12. Bc4+ {[%emt 0:10:57]} Kh8 {[%emt 0:01:06]} 13. e4 {[%emt 0:00:13][%cal Oe4e5] Strongly threatening e5! White is much more active.} c6 {[%emt 0:09:09]} 14. Rhe1 {[%emt 0:13:57]} Qc7 {[%emt 0:04:04]} 15. Bf1 {[%emt 0:15:24]} (15. Ne2 $16) 15... fxe4 $1 $11 {[%emt 0:04:01]} 16. Nxe4 {[%emt 0:00:12] Hoping for Bxg7+.} Nd5 {[%emt 0:05:02]} 17. g3 {[%emt 0:23:09]} Bf5 {[%emt 0:01:54]} 18. Ng5 {[%emt 0:04:24]} (18. Bc4 $11) 18... Bxb2+ {[%emt 0:00:42]} (18... Rae8 $1 $17 {...h6 is the strong threat.} 19. Bc4 h6 20. Bxg7+ Qxg7 21. Bxd5 cxd5) 19. Kxb2 {[%emt 0:00:06]} Qg7+ {[%emt 0:00:05]} 20. c3 {[%emt 0:03:34]} Rae8 {[%emt 0:01:06]} 21. Bc4 {[%emt 0:13:17]} Bg4 {[%emt 0:03:07]} 22. Nf7+ $1 {[%emt 0:00:51]} Qxf7 {[%emt 0:04:06]} (22... Kg8 $11 {keeps the balance.} 23. Nh6+ Qxh6 24. Qxg4 Qxh2+ 25. Ka3 Rxe1 26. Rxe1 Qd2) 23. Qxg4 $16 {[%emt 0:01:58]} Rxe1 {[%emt 0:00:54]} 24. Rxe1 {[%emt 0:00:29]} b5 {[%emt 0:00:28]} 25. Bxd5 {[%emt 0:01:04]} Qxd5 {[%emt 0:00:02][%mdl 4096] Endgame KQR-KQR} 26. Qe2 {[%emt 0:02:10] Against Qd2+} Rf6 $2 {[%emt 0:09:46]} (26... Kg7 $14) 27. Qe3 $2 {[%emt 0:01:16]} (27. Qe8+ $18 Kg7 28. Re7+ Rf7 29. Rxf7+ Qxf7 30. Qxc6) 27... a5 $14 {[%emt 0:01:24]} 28. Re2 {[%emt 0:00:51]} Kg7 {[%emt 0:01:40]} (28... Kg8 $1 $14) 29. Qa7+ $16 {[%emt 0:03:37]} Rf7 {[%emt 0:00:04]} 30. Qxa5 {[%emt 0:00:57][%cal Oc3c4]} Qd1 {[%emt 0:01:04]} (30... Qd3 $16 {was called for.} 31. Rc2 Re7) 31. Rc2 $18 {[%emt 0:00:03]} Re7 {[%emt 0:01:41]} 32. c4 {[%emt 0:00:28]} (32. Qb6 $142) 32... bxc4 {[%emt 0:00:14]} 33. Qc3+ {[%emt 0:00:17]} Kh6 {[%emt 0:00:02]} (33... Kf8 $16) 34. Qxc4 {[%emt 0:00:19]} ({And not} 34. Qf6 Re8 $11) 34... c5 {[%emt 0:02:06] [#]} 35. Qc3 {[%emt 0:02:17]} (35. f5 $1 $18 {Threatens to win with Qh4+.} Re1 36. fxg6 (36. Ka3 gxf5 37. Qc3 Re6 $16) 36... hxg6 37. Rf2 (37. Ka3 Rf1 $16) 37... Qa1+ 38. Ka3) 35... Re1 $16 {[%emt 0:00:29]} 36. Qd2 {[%emt 0:00:24]} Qb1+ {[%emt 0:02:02]} 37. Ka3 {[%emt 0:00:15]} Rd1 {[%emt 0:00:05]} 38. Qc3 $36 {[%emt 0:00:48][%mdl 2048] White is really pushing.} Rd4 {[%emt 0:00:02]} 39. Rd2 {[%emt 0:00:29]} (39. g4 $16) 39... Qe4 $2 {[%emt 0:00:02] [#]} (39... Qe1 $1 $11 40. Rd3 Qxc3 41. Rxc3 Rd2) 40. Kb2 $1 $18 {[%emt 0:00:00]} Qd5 {[%emt 0:00:00]} (40... Rxd2+ $142 41. Qxd2 d5) 41. Rxd4 {[%emt 0:12:07]} cxd4 {[%emt 0:01:25] KQ-KQ} 42. Qd2 {[%emt 0:00:13]} Kg7 {[%emt 0:01:26]} 43. a4 {[%emt 0:00:29][%cal Ba2a4,Ba4a5,Ba5a6,Ba6a7][%mdl 32]} Kf7 {[%emt 0:02:18]} (43... Qe4 $142 44. a5 Kf8) 44. Qd3 {[%emt 0:05:04] aiming for Qc4.} Qg2+ {[%emt 0:00:28]} 45. Qc2 {[%emt 0:05:16]} Qg1 {[%emt 0:00:08]} 46. Qd2 {[%emt 0:01:41]} Ke6 {[%emt 0:02:06]} 47. a5 {[%emt 0:00:06]} Kd7 {[%emt 0:00:47]} 48. a6 {[%emt 0:01:00] And now a7 would win.} Qf1 {[%emt 0:01:52]} 49. a7 {[%emt 0:01:43]} Qa6 {[%emt 0:00:03]} 50. Qxd4 {[%emt 0:00:07] White wants to mate with Qa4+.} Qe2+ {[%emt 0:00:02]} 51. Ka3 {[%emt 0:00:13]} Qa6+ {[%emt 0:00:18]} 52. Qa4+ {[%emt 0:00:05] Weighted Error Value: White=0.26 (precise) /Black=0.53} 1-0